[Event "European School-ch 2019"]
[Site "Mamaia"]
[Date "2019.06.04"]
[Round "5.12"]
[White "Silich, Yahor"]
[Black "Nastore, Pavel-Alexandru"]
[Result "1-0"]
[ECO "B51"]
[WhiteElo "2082"]
[BlackElo "1942"]
[Annotator "NA RC"]
[PlyCount "49"]
[EventDate "2019.05.31"]
[EventType "swiss"]
[EventCountry "ROU"]
[SourceTitle "playchess.com"]
[Source "ChessBase"]
[SourceQuality "1"]
[TimeControl "40/5400+30:1800+30"]

1. e4 {[%emt 0:00:00]} c5 {[%emt 0:00:00]} 2. Nf3 {[%emt 0:00:01]} d6 {[%emt 0:00:00]} 3. Bb5+ {[%emt 0:00:29]} Nd7 {[%emt 0:00:00]} 4. d4 {[%emt 0:00:09]} cxd4 {[%emt 0:00:00]} 5. Qxd4 {[%emt 0:00:39]} a6 {[%emt 0:00:00]} 6. Bxd7+ {[%emt 0:00:12]} Bxd7 {[%emt 0:00:00]} 7. Bg5 {[%emt 0:00:16]} Rc8 {[%emt 0:04:42]} 8. O-O {[%emt 0:02:25]} Bb5 {[%emt 0:09:36]} 9. Re1 {[%emt 0:04:44]} h6 {[%emt 0:01:39]} 10. Bh4 {[%emt 0:01:49]} Rc4 {[%emt 0:01:05]} 11. Qd5 {[%emt 0:12:04]} g5 {[%emt 0:11:29]} 12. a4 {[%emt 0:03:46]} Rc5 {[%emt 0:33:34]} 13. Qxb7 {[%emt 0:01:23]} Rc7 {[%emt 0:00:02]} 14. Qb6 {[%emt 0:08:33]} Bd7 {[%emt 0:00:13]} 15. Bg3 {[%emt 0:05:03]} Rxc2 {[%emt 0:06:04]} 16. Qd4 {[%emt 0:00:41]} e5 {[%emt 0:08:10]} 17. Nxe5 {[%emt 0:07:38]} dxe5 {[%emt 0:03:09]} 18. Qxe5+ {[%emt 0:00:19]} Be7 {[%emt 0:00:22]} 19. Qxh8 {[%emt 0:00:51]} Kf8 {[%emt 0:00:03]} 20. Nc3 {[%emt 0:01:09]} Be6 {[%emt 0:01:47]} 21. Rad1 {[%emt 0:01:26]} Qb6 {[%emt 0:01:06]} 22. Qe5 {[%emt 0:03:00]} Rxb2 {[%emt 0:03:31]} 23. Nd5 {[%emt 0:00:52]} Bxd5 {[%emt 0:01:19]} 24. exd5 {[%emt 0:00:04]} f6 {[%emt 0:03:07]} 25. Qe6 {[%emt 0:01:31]} 1-0

[Event "European School-ch 2019"]
[Site "Mamaia"]
[Date "2019.06.04"]
[Round "5.14"]
[White "Kanli, Alperen"]
[Black "Simonyan, Grigori"]
[Result "0-1"]
[ECO "B33"]
[WhiteElo "1790"]
[BlackElo "2019"]
[Annotator "NA RC"]
[PlyCount "67"]
[EventDate "2019.05.31"]
[EventType "swiss"]
[EventCountry "ROU"]
[SourceTitle "playchess.com"]
[Source "ChessBase"]
[SourceQuality "1"]
[TimeControl "40/5400+30:1800+30"]

1. e4 {[%emt 0:00:00]} c5 {[%emt 0:00:00]} 2. Nf3 {[%emt 0:00:00]} Nc6 {[%emt 0:00:00]} 3. d4 {[%emt 0:00:00]} cxd4 {[%emt 0:00:00]} 4. Nxd4 {[%emt 0:00:00]} Nf6 {[%emt 0:00:24]} 5. Nc3 {[%emt 0:00:11]} g6 {[%emt 0:01:19]} 6. Be3 {[%emt 0:01:12]} Bg7 {[%emt 0:01:21]} 7. Nxc6 {[%emt 0:00:24]} bxc6 {[%emt 0:00:05]} 8. e5 {[%emt 0:00:03]} Ng8 {[%emt 0:00:06]} 9. Bd4 {[%emt 0:00:04]} Nh6 {[%emt 0:00:16]} 10. g4 {[%emt 0:21:51]} O-O {[%emt 0:13:58]} 11. h3 {[%emt 0:02:22]} Qa5 {[%emt 0:13:53]} 12. Qd2 {[%emt 0:03:52]} Bxe5 {[%emt 0:14:47]} 13. Be3 {[%emt 0:00:29]} Qb4 {[%emt 0:00:05]} 14. Qc1 {[%emt 0:11:30]} d5 {[%emt 0:13:55]} 15. a3 {[%emt 0:08:35]} Bxc3+ {[%emt 0:00:53]} 16. bxc3 {[%emt 0:00:05]} Qxc3+ {[%emt 0:07:43]} 17. Kd1 {[%emt 0:11:02]} f6 {[%emt 0:05:19]} 18. Be2 {[%emt 0:09:40]} Nf7 {[%emt 0:00:05]} 19. Rb1 {[%emt 0:00:02]} Qa5 {[%emt 0:00:25]} 20. h4 {[%emt 0:01:19]} d4 {[%emt 0:01:25]} 21. Bd2 {[%emt 0:00:12]} Qd5 {[%emt 0:00:05]} 22. Rg1 {[%emt 0:01:13]} Nd6 {[%emt 0:01:38]} 23. Rb3 {[%emt 0:00:48]} e5 {[%emt 0:00:26]} 24. h5 {[%emt 0:00:57]} g5 {[%emt 0:01:03]} 25. h6 {[%emt 0:01:12]} e4 {[%emt 0:01:01]} 26. c4 {[%emt 0:01:06]} Qc5 {[%emt 0:01:59]} 27. Bb4 {[%emt 0:11:06]} Qe5 {[%emt 0:00:04]} 28. f3 {[%emt 0:03:23]} c5 {[%emt 0:00:19]} 29. Be1 {[%emt 0:01:07]} Qh2 {[%emt 0:01:11]} 30. Rg3 {[%emt 0:02:26]} Bd7 {[%emt 0:00:33]} 31. Rb1 {[%emt 0:04:00]} Ba4+ {[%emt 0:00:27]} 32. Kd2 {[%emt 0:00:00]} e3+ {[%emt 0:00:19]} 33. Kd3 {[%emt 0:00:08]} Be8 {[%emt 0:00:20]} 34. Bd2 0-1

[Event "European School-ch 2019"]
[Site "Mamaia"]
[Date "2019.06.04"]
[Round "5.15"]
[White "Tarhan, Adar"]
[Black "Dobre, Radu-Fabian"]
[Result "0-1"]
[ECO "C54"]
[WhiteElo "1964"]
[BlackElo "1978"]
[Annotator "NA RC"]
[PlyCount "130"]
[EventDate "2019.05.31"]
[EventType "swiss"]
[EventCountry "ROU"]
[SourceTitle "playchess.com"]
[Source "ChessBase"]
[SourceQuality "1"]
[TimeControl "40/5400+30:1800+30"]

1. e4 {[%emt 0:00:00]} e5 {[%emt 0:00:00]} 2. Nf3 {[%emt 0:00:00]} Nc6 {[%emt 0:00:00]} 3. Bc4 {[%emt 0:02:02]} Bc5 {[%emt 0:00:00]} 4. c3 {[%emt 0:00:04]} Nf6 {[%emt 0:00:00]} 5. d3 {[%emt 0:00:04]} a6 {[%emt 0:00:07]} 6. a4 {[%emt 0:00:14]} Ba7 {[%emt 0:00:11]} 7. O-O {[%emt 0:00:31]} d6 {[%emt 0:00:21]} 8. Nbd2 {[%emt 0:01:38]} O-O {[%emt 0:00:08]} 9. h3 {[%emt 0:00:33]} Ne7 {[%emt 0:00:17]} 10. Re1 {[%emt 0:01:10]} Ng6 {[%emt 0:00:20]} 11. Nf1 {[%emt 0:00:11]} h6 {[%emt 0:00:06]} 12. Ng3 {[%emt 0:00:16]} b5 {[%emt 0:05:46]} 13. Bb3 {[%emt 0:00:47]} Bb7 {[%emt 0:00:04]} 14. Nf5 {[%emt 0:10:16]} Kh7 {[%emt 0:15:43]} 15. Qd2 {[%emt 0:10:19]} Ng8 {[%emt 0:00:56]} 16. Qe2 {[%emt 0:03:42]} Bb6 {[%emt 0:05:56]} 17. axb5 {[%emt 0:01:31]} axb5 {[%emt 0:00:49]} 18. Rxa8 {[%emt 0:00:08]} Bxa8 {[%emt 0:00:23]} 19. h4 {[%emt 0:10:59]} Nf6 {[%emt 0:17:38]} 20. g3 {[%emt 0:05:26]} Ne7 {[%emt 0:02:20]} 21. Ng5+ {[%emt 0:11:12]} Kg8 {[%emt 0:05:37]} 22. Nxe7+ {[%emt 0:02:20]} Qxe7 {[%emt 0:00:09]} 23. Nh3 {[%emt 0:00:27]} Re8 {[%emt 0:00:57]} 24. Kg2 {[%emt 0:03:23]} d5 {[%emt 0:00:47]} 25. f3 {[%emt 0:02:11]} c5 {[%emt 0:12:49]} 26. Bc2 {[%emt 0:06:16]} Bc6 {[%emt 0:01:30]} 27. Nf2 {[%emt 0:00:34]} Qb7 {[%emt 0:07:37]} 28. c4 {[%emt 0:08:12]} bxc4 {[%emt 0:05:54]} 29. exd5 {[%emt 0:02:05]} Nxd5 {[%emt 0:02:41]} 30. dxc4 {[%emt 0:00:17]} Nf6 {[%emt 0:02:28]} 31. Bd2 {[%emt 0:05:42]} Bc7 {[%emt 0:00:36]} 32. Bc3 {[%emt 0:00:21]} Nd7 {[%emt 0:01:26]} 33. Qd3 {[%emt 0:00:57]} Nf8 {[%emt 0:00:08]} 34. Qe3 {[%emt 0:04:04]} Ne6 {[%emt 0:00:31]} 35. Ne4 {[%emt 0:00:39]} Nd4 {[%emt 0:00:48]} 36. Nxc5 {[%emt 0:00:43]} Nxc2 {[%emt 0:00:16]} 37. Nxb7 {[%emt 0:00:11]} Nxe3+ {[%emt 0:00:06]} 38. Rxe3 {[%emt 0:00:03]} Bxb7 {[%emt 0:00:07]} 39. b4 {[%emt 0:00:19]} e4 {[%emt 0:00:42]} 40. f4 {[%emt 0:00:00]} Rd8 {[%emt 0:00:00]} 41. Kf2 {[%emt 0:01:00]} f5 {[%emt 0:01:19]} 42. c5 {[%emt 0:00:16]} Bc6 {[%emt 0:00:06]} 43. Be1 {[%emt 0:01:12]} Ra8 {[%emt 0:00:32]} 44. Rb3 {[%emt 0:00:06]} Ra2+ {[%emt 0:00:17]} 45. Ke3 {[%emt 0:00:06]} Bb5 {[%emt 0:00:24]} 46. Bd2 {[%emt 0:00:39]} Bd8 {[%emt 0:00:25]} 47. Rc3 {[%emt 0:00:16]} Bf6 {[%emt 0:00:12]} 48. Rb3 {[%emt 0:00:34]} Bc4 {[%emt 0:00:28]} 49. Rb1 {[%emt 0:00:12]} Ra3+ {[%emt 0:00:16]} 50. Kf2 {[%emt 0:00:04]} Bd4+ {[%emt 0:00:14]} 51. Kg2 {[%emt 0:00:33]} Ra2 {[%emt 0:00:09]} 52. c6 {[%emt 0:00:04]} Rxd2+ {[%emt 0:00:05]} 53. Kh3 {[%emt 0:00:02]} Bb6 {[%emt 0:00:16]} 54. Rc1 {[%emt 0:00:07]} Bb5 {[%emt 0:00:40]} 55. h5 {[%emt 0:00:08]} e3 {[%emt 0:00:27]} 56. g4 {[%emt 0:00:20]} e2 {[%emt 0:00:17]} 57. c7 {[%emt 0:00:13]} Bxc7 {[%emt 0:00:13]} 58. g5 {[%emt 0:00:19]} Rd3+ {[%emt 0:01:02]} 59. Kg2 {[%emt 0:00:35]} hxg5 {[%emt 0:00:25]} 60. h6 {[%emt 0:00:08]} gxh6 {[%emt 0:00:58]} 61. fxg5 {[%emt 0:00:42]} Rd1 {[%emt 0:00:18]} 62. Rxc7 {[%emt 0:00:04]} e1=Q {[%emt 0:00:07]} 63. Rc8+ {[%emt 0:00:04]} Kf7 {[%emt 0:00:19]} 64. g6+ {[%emt 0:00:05]} Kxg6 {[%emt 0:00:10]} 65. Rg8+ {[%emt 0:00:03]} Kf7 {[%emt 0:00:10]} 0-1

[Event "European School-ch 2019"]
[Site "Mamaia"]
[Date "2019.06.04"]
[Round "5.18"]
[White "Trushko, Andrii"]
[Black "Levin, Guy"]
[Result "0-1"]
[ECO "A05"]
[WhiteElo "1813"]
[BlackElo "2054"]
[Annotator "NA RC"]
[PlyCount "102"]
[EventDate "2019.05.31"]
[EventType "swiss"]
[EventCountry "ROU"]
[SourceTitle "playchess.com"]
[Source "ChessBase"]
[SourceQuality "1"]
[TimeControl "40/5400+30:1800+30"]

1. Nf3 {[%emt 0:00:00]} Nf6 2. g3 {[%emt 0:00:00]} e6 {[%emt 0:00:00]} 3. Bg2 {[%emt 0:00:00]} d5 {[%emt 0:00:00]} 4. O-O {[%emt 0:00:02]} Be7 {[%emt 0:00:05]} 5. c4 {[%emt 0:00:04]} dxc4 {[%emt 0:00:25]} 6. Qa4+ {[%emt 0:00:05]} c6 {[%emt 0:00:09]} 7. Qxc4 {[%emt 0:00:04]} b5 {[%emt 0:00:07]} 8. Qc2 {[%emt 0:00:03]} Bb7 {[%emt 0:00:08]} 9. d4 {[%emt 0:00:04]} Nbd7 {[%emt 0:00:12]} 10. a4 {[%emt 0:00:05]} a6 {[%emt 0:06:19]} 11. Bg5 {[%emt 0:00:07]} Nd5 {[%emt 0:02:00]} 12. Bxe7 {[%emt 0:00:13]} Qxe7 {[%emt 0:00:14]} 13. axb5 {[%emt 0:01:42]} cxb5 {[%emt 0:00:20]} 14. Nc3 {[%emt 0:00:49]} Nxc3 {[%emt 0:00:27]} 15. Qxc3 {[%emt 0:00:09]} Rc8 {[%emt 0:00:43]} 16. Qd2 {[%emt 0:00:35]} O-O {[%emt 0:00:28]} 17. Ne1 {[%emt 0:09:59]} Nb6 {[%emt 0:02:38]} 18. b3 {[%emt 0:00:14]} Rfd8 {[%emt 0:09:27]} 19. Bxb7 {[%emt 0:03:32]} Qxb7 {[%emt 0:00:06]} 20. Nf3 {[%emt 0:00:06]} Nd5 {[%emt 0:02:38]} 21. Rfc1 {[%emt 0:00:43]} Rxc1+ {[%emt 0:11:37]} 22. Qxc1 {[%emt 0:00:18]} f6 {[%emt 0:14:42]} 23. Qa3 {[%emt 0:00:59]} Nc3 {[%emt 0:00:48]} 24. Qb2 {[%emt 0:14:09]} b4 {[%emt 0:01:12]} 25. Qc2 {[%emt 0:02:07]} Qb5 {[%emt 0:01:32]} 26. Kf1 {[%emt 0:02:04]} a5 {[%emt 0:00:51]} 27. Re1 {[%emt 0:07:33]} Qc6 {[%emt 0:06:25]} 28. Kg1 {[%emt 0:11:25]} Qa6 {[%emt 0:01:44]} 29. h4 {[%emt 0:03:20]} Rc8 {[%emt 0:02:10]} 30. Qd2 {[%emt 0:00:35]} Qc6 {[%emt 0:08:43]} 31. Ra1 {[%emt 0:07:50]} Qe4 {[%emt 0:03:05]} 32. Re1 {[%emt 0:02:15]} Nb5 {[%emt 0:02:04]} 33. Qd3 {[%emt 0:01:03]} Qxd3 {[%emt 0:01:04]} 34. exd3 {[%emt 0:00:05]} Rc3 {[%emt 0:01:45]} 35. Rxe6 {[%emt 0:00:46]} Rxd3 {[%emt 0:01:08]} 36. Re3 {[%emt 0:00:26]} Rd1+ {[%emt 0:00:52]} 37. Kg2 {[%emt 0:00:06]} Kf7 {[%emt 0:00:13]} 38. Re2 {[%emt 0:01:46]} Nxd4 {[%emt 0:01:32]} 39. Nxd4 {[%emt 0:00:05]} Rxd4 {[%emt 0:00:20]} 40. Rc2 {[%emt 0:00:00]} Rd5 {[%emt 0:00:00]} 41. Rc7+ {[%emt 0:00:19]} Kg6 {[%emt 0:01:44]} 42. Ra7 {[%emt 0:00:05]} h5 {[%emt 0:03:29]} 43. Ra8 {[%emt 0:01:03]} Kf5 {[%emt 0:00:25]} 44. Rh8 {[%emt 0:01:28]} Ke4 {[%emt 0:00:30]} 45. Rh7 {[%emt 0:00:21]} Kd3 46. Rxg7 {[%emt 0:00:07]} Kc3 {[%emt 0:00:46]} 47. f3 {[%emt 0:00:04]} Kxb3 {[%emt 0:00:46]} 48. g4 {[%emt 0:00:06]} a4 {[%emt 0:00:13]} 49. g5 {[%emt 0:00:06]} fxg5 {[%emt 0:00:08]} 50. hxg5 {[%emt 0:00:04]} a3 {[%emt 0:00:15]} 51. f4 {[%emt 0:00:06]} Ra5 {[%emt 0:01:45]} 0-1

[Event "European School-ch 2019"]
[Site "Mamaia"]
[Date "2019.06.04"]
[Round "5.19"]
[White "Gurel, Ediz"]
[Black "Durak, Can"]
[Result "1/2-1/2"]
[ECO "B36"]
[WhiteElo "1914"]
[BlackElo "1646"]
[Annotator "NA RC"]
[PlyCount "56"]
[EventDate "2019.05.31"]
[EventType "swiss"]
[EventCountry "ROU"]
[SourceTitle "playchess.com"]
[Source "ChessBase"]
[SourceQuality "1"]
[TimeControl "40/5400+30:1800+30"]

1. e4 {[%emt 0:00:00]} c5 {[%emt 0:00:00]} 2. Nf3 {[%emt 0:00:25]} Nc6 {[%emt 0:00:31]} 3. d4 {[%emt 0:00:37]} cxd4 {[%emt 0:00:31]} 4. Nxd4 {[%emt 0:00:12]} g6 {[%emt 0:00:26]} 5. c4 {[%emt 0:00:28]} Nf6 {[%emt 0:00:31]} 6. Nc3 {[%emt 0:00:31]} Nxd4 {[%emt 0:00:20]} 7. Qxd4 {[%emt 0:00:22]} d6 {[%emt 0:00:46]} 8. Be2 {[%emt 0:00:46]} Bg7 {[%emt 0:00:42]} 9. Be3 {[%emt 0:00:48]} O-O {[%emt 0:00:51]} 10. Qd2 {[%emt 0:00:23]} Be6 {[%emt 0:02:00]} 11. O-O {[%emt 0:01:54]} Qa5 {[%emt 0:02:26]} 12. f3 {[%emt 0:07:50]} Rfc8 {[%emt 0:00:54]} 13. b3 {[%emt 0:00:07]} a6 {[%emt 0:01:26]} 14. Rad1 {[%emt 0:07:23]} b5 {[%emt 0:01:52]} 15. Nd5 {[%emt 0:00:13]} Qxd2 {[%emt 0:00:18]} 16. Rxd2 {[%emt 0:00:10]} Nxd5 {[%emt 0:00:40]} 17. exd5 {[%emt 0:00:12]} Bd7 {[%emt 0:00:37]} 18. Rc1 {[%emt 0:02:58]} a5 {[%emt 0:04:28]} 19. Bd3 {[%emt 0:20:56]} a4 {[%emt 0:02:31]} 20. c5 {[%emt 0:03:25]} dxc5 {[%emt 0:03:11]} 21. Rxc5 {[%emt 0:00:08]} Bc3 {[%emt 0:02:03]} 22. Re2 {[%emt 0:01:27]} Bb4 {[%emt 0:07:04]} 23. Rxc8+ {[%emt 0:04:35]} Rxc8 {[%emt 0:00:22]} 24. Rc2 {[%emt 0:00:07]} Rxc2 {[%emt 0:03:55]} 25. Bxc2 {[%emt 0:00:05]} axb3 {[%emt 0:00:29]} 26. Bxb3 {[%emt 0:00:59]} Bf5 {[%emt 0:00:41]} 27. a4 {[%emt 0:01:44]} bxa4 {[%emt 0:00:24]} 28. Bxa4 {[%emt 0:00:06]} Bd3 {[%emt 0:00:38]} 1/2-1/2

[Event "European School-ch 2019"]
[Site "Mamaia"]
[Date "2019.06.04"]
[Round "5.20"]
[White "Sapocinic, Semion"]
[Black "Nemsadze, Daviti"]
[Result "1/2-1/2"]
[ECO "B67"]
[WhiteElo "1697"]
[BlackElo "1803"]
[Annotator "NA RC"]
[PlyCount "34"]
[EventDate "2019.05.31"]
[EventType "swiss"]
[EventCountry "ROU"]
[SourceTitle "playchess.com"]
[Source "ChessBase"]
[SourceQuality "1"]
[TimeControl "40/5400+30:1800+30"]

1. e4 {[%emt 0:00:00]} c5 {[%emt 0:00:00]} 2. Nf3 {[%emt 0:00:00]} d6 {[%emt 0:00:00]} 3. d4 {[%emt 0:00:00]} cxd4 {[%emt 0:00:00]} 4. Nxd4 {[%emt 0:00:00]} Nf6 {[%emt 0:00:00]} 5. Nc3 {[%emt 0:00:11]} Nc6 {[%emt 0:00:00]} 6. Bg5 {[%emt 0:00:46]} e6 {[%emt 0:00:00]} 7. Qd2 {[%emt 0:00:13]} a6 {[%emt 0:00:00]} 8. O-O-O {[%emt 0:00:32]} Bd7 {[%emt 0:00:00]} 9. f3 {[%emt 0:00:11]} h6 {[%emt 0:04:05]} 10. Be3 {[%emt 0:01:28]} Be7 {[%emt 0:02:47]} 11. g4 Qa5 {[%emt 0:30:10]} 12. Kb1 {[%emt 0:02:34]} Rc8 {[%emt 0:05:30]} 13. Nb3 {[%emt 0:04:52]} Qc7 {[%emt 0:04:30]} 14. h4 {[%emt 0:03:07]} b5 {[%emt 0:13:23]} 15. Bd3 {[%emt 0:02:35]} h5 {[%emt 0:16:27]} 16. g5 {[%emt 0:04:17]} Ng8 {[%emt 0:03:58]} 17. f4 {[%emt 0:01:44]} g6 {[%emt 0:05:19]} 1/2-1/2

[Event "European School-ch 2019"]
[Site "Mamaia"]
[Date "2019.06.04"]
[Round "5.21"]
[White "Butolo, Alexandru-Mircea"]
[Black "Samunenkov, Ihor"]
[Result "0-1"]
[ECO "A30"]
[WhiteElo "1553"]
[BlackElo "1972"]
[Annotator "NA RC"]
[PlyCount "82"]
[EventDate "2019.05.31"]
[EventType "swiss"]
[EventCountry "ROU"]
[SourceTitle "playchess.com"]
[Source "ChessBase"]
[SourceQuality "1"]
[TimeControl "40/5400+30:1800+30"]

1. c4 {[%emt 0:00:09]} c5 {[%emt 0:00:00]} 2. g3 {[%emt 0:00:14]} Nc6 {[%emt 0:01:29]} 3. Bg2 {[%emt 0:01:23]} g6 {[%emt 0:00:15]} 4. e3 {[%emt 0:00:30]} Bg7 {[%emt 0:01:50]} 5. Ne2 {[%emt 0:00:13]} e5 {[%emt 0:10:31]} 6. Nbc3 {[%emt 0:00:42]} d6 {[%emt 0:07:19]} 7. d3 {[%emt 0:00:19]} Nge7 {[%emt 0:00:18]} 8. O-O {[%emt 0:00:20]} O-O {[%emt 0:00:58]} 9. Rb1 {[%emt 0:01:03]} Be6 {[%emt 0:02:58]} 10. Nd5 {[%emt 0:00:10]} Rb8 {[%emt 0:05:10]} 11. b3 {[%emt 0:00:53]} f5 {[%emt 0:07:18]} 12. f4 {[%emt 0:00:40]} Bxd5 {[%emt 0:02:18]} 13. cxd5 {[%emt 0:00:13]} Nb4 {[%emt 0:00:09]} 14. fxe5 {[%emt 0:03:05]} dxe5 {[%emt 0:08:51]} 15. e4 {[%emt 0:07:45]} Nxa2 {[%emt 0:02:32]} 16. Be3 {[%emt 0:01:33]} b6 {[%emt 0:04:57]} 17. Ra1 {[%emt 0:02:17]} Nb4 {[%emt 0:02:07]} 18. Rxa7 {[%emt 0:01:05]} Nc8 {[%emt 0:02:45]} 19. Ra1 {[%emt 0:04:57]} Nd6 {[%emt 0:01:42]} 20. Qd2 {[%emt 0:02:00]} Ra8 {[%emt 0:04:34]} 21. Nc3 {[%emt 0:05:01]} Rxa1 {[%emt 0:03:43]} 22. Rxa1 {[%emt 0:02:05]} f4 {[%emt 0:01:36]} 23. Bf2 {[%emt 0:02:53]} Bh6 {[%emt 0:04:19]} 24. gxf4 {[%emt 0:02:00]} Bxf4 {[%emt 0:02:06]} 25. Qe2 {[%emt 0:04:56]} Qg5 {[%emt 0:01:38]} 26. Na4 {[%emt 0:01:28]} Nc8 {[%emt 0:03:59]} 27. Nxc5 {[%emt 0:01:10]} bxc5 {[%emt 0:03:12]} 28. Bxc5 {[%emt 0:00:08]} Rf7 {[%emt 0:00:16]} 29. Ra8 {[%emt 0:02:17]} Rc7 {[%emt 0:00:54]} 30. Bxb4 {[%emt 0:00:18]} Rc1+ {[%emt 0:04:56]} 31. Be1 {[%emt 0:00:13]} Kg7 {[%emt 0:00:28]} 32. Ra6 {[%emt 0:08:20]} Qh4 {[%emt 0:03:48]} 33. Kf1 {[%emt 0:00:30]} Bxh2 {[%emt 0:04:59]} 34. Rc6 {[%emt 0:08:19]} Rb1 {[%emt 0:01:01]} 35. Rc7+ {[%emt 0:00:47]} Kh6 {[%emt 0:01:06]} 36. Qf2 {[%emt 0:10:56]} Qxf2+ {[%emt 0:01:09]} 37. Kxf2 {[%emt 0:00:18]} Rb2+ {[%emt 0:00:08]} 38. Kf3 {[%emt 0:00:27]} Nd6 {[%emt 0:00:16]} 39. Bb4 {[%emt 0:01:19]} Nb5 {[%emt 0:00:35]} 40. Bf8+ {[%emt 0:00:00]} Kg5 {[%emt 0:00:00]} 41. Rxh7 {[%emt 0:00:58]} Nd4+ {[%emt 0:00:21]} 0-1

[Event "European School-ch 2019"]
[Site "Mamaia"]
[Date "2019.06.04"]
[Round "5.22"]
[White "Cnejev, Vladimir-Alexandru"]
[Black "Zhelev, Nikolay"]
[Result "0-1"]
[ECO "B30"]
[WhiteElo "1970"]
[BlackElo "1710"]
[Annotator "NA RC"]
[PlyCount "104"]
[EventDate "2019.05.31"]
[EventType "swiss"]
[EventCountry "ROU"]
[SourceTitle "playchess.com"]
[Source "ChessBase"]
[SourceQuality "1"]
[TimeControl "40/5400+30:1800+30"]

1. e4 {[%emt 0:00:00]} c5 {[%emt 0:00:00]} 2. Nf3 {[%emt 0:00:00]} Nc6 {[%emt 0:00:18]} 3. c3 {[%emt 0:00:00]} Nf6 {[%emt 0:01:00]} 4. e5 {[%emt 0:00:02]} Nd5 {[%emt 0:00:08]} 5. d4 {[%emt 0:00:09]} cxd4 {[%emt 0:00:49]} 6. cxd4 {[%emt 0:00:01]} d6 {[%emt 0:00:49]} 7. Bc4 {[%emt 0:00:23]} dxe5 {[%emt 0:00:46]} 8. dxe5 {[%emt 0:00:15]} Ndb4 {[%emt 0:04:18]} 9. Qxd8+ {[%emt 0:00:49] B22: Sicilian: 2 c3} Nxd8 {[%emt 0:02:51]} 10. Na3 {[%emt 0:00:46]} a6 {[%emt 0:12:43]} (10... Be6 11. O-O Bxc4 12. Nxc4 Rc8 13. b3 e6 14. Rd1 Ndc6 15. Bb2 Be7 16. Nd4 Nxd4 17. Bxd4 {½-½ (30) Lin,C (2508)-Vidit,S (2717) China 2019}) 11. Bd2 {[%emt 0:00:42]} Ndc6 {[%emt 0:06:20]} 12. O-O Bg4 {[%emt 0:09:39]} 13. Rac1 $146 {[%emt 0:07:52]} ({Predecessor:} 13. e6 Bxe6 14. Bxe6 fxe6 15. Ng5 e5 16. Nc4 Nd3 {½-½ (40) Ioffe,I (2267)-Ismagilov,D (2065) St Petersburg 2018}) 13... e6 {[%emt 0:03:20]} 14. Bc3 {[%emt 0:02:10]} Be7 {[%emt 0:04:17]} 15. h3 {[%emt 0:06:52]} Bf5 {[%emt 0:10:25]} 16. Rfd1 {[%emt 0:12:11]} Be4 {[%emt 0:14:11]} 17. Kf1 {[%emt 0:38:33]} Rd8 {[%emt 0:11:24]} 18. Rxd8+ {[%emt 0:05:07]} Kxd8 {[%emt 0:00:04]} 19. Nd4 {[%emt 0:10:04]} Nxd4 {[%emt 0:06:07]} 20. Bxd4 {[%emt 0:00:09]} Bd5 {[%emt 0:00:06]} 21. Bb6+ {[%emt 0:01:44]} Kd7 {[%emt 0:00:11]} 22. Bxd5 {[%emt 0:01:55]} Nxd5 {[%emt 0:00:05]} 23. Bd4 {[%emt 0:09:05]} Bxa3 {[%emt 0:00:15]} 24. bxa3 {[%emt 0:00:01]} Rc8 {[%emt 0:00:13]} 25. Rxc8 {[%emt 0:00:04]} Kxc8 {[%emt 0:00:05]} 26. g3 {[%emt 0:00:29]} Kc7 {[%emt 0:00:15]} 27. Ke2 {[%emt 0:00:09]} Kc6 {[%emt 0:00:09]} 28. Kd3 {[%emt 0:01:11]} Kb5 {[%emt 0:04:18]} 29. f3 {[%emt 0:01:19]} b6 {[%emt 0:01:26]} 30. Bb2 {[%emt 0:00:27]} Kc5 {[%emt 0:01:03]} 31. Bd4+ {[%emt 0:00:11]} Kb5 {[%emt 0:00:11]} 32. Bb2 {[%emt 0:00:04]} Ka4 {[%emt 0:02:21]} 33. Bc1 {[%emt 0:01:25]} Nc7 {[%emt 0:00:21]} 34. Be3 {[%emt 0:00:35]} Kxa3 {[%emt 0:01:30]} 35. Bxb6 {[%emt 0:00:02]} Nd5 {[%emt 0:00:08]} 36. Bd4 {[%emt 0:00:31]} Kxa2 {[%emt 0:00:17]} 37. Kc4 Kb1 {[%emt 0:00:40]} 38. Kc5 {[%emt 0:00:48]} Kc2 {[%emt 0:01:53]} 39. Kc6 {[%emt 0:00:39]} Kd3 {[%emt 0:00:06]} 40. Ba1 {[%emt 0:00:00]} Ke3 {[%emt 0:00:00]} 41. Kd7 {[%emt 0:01:36]} Kxf3 {[%emt 0:03:42]} 42. Ke8 {[%emt 0:00:04]} Kxg3 {[%emt 0:12:08]} 43. Kxf7 {[%emt 0:00:44]} Nf4 {[%emt 0:01:53]} 44. Kxg7 {[%emt 0:01:06]} h5 {[%emt 0:02:06]} 45. Bc3 {[%emt 0:01:46]} h4 {[%emt 0:09:29]} 46. Bd2 {[%emt 0:04:33]} Nxh3 {[%emt 0:00:43]} 47. Kf6 {[%emt 0:00:16]} Nf4 {[%emt 0:00:06]} 48. Kg5 {[%emt 0:13:32]} Nd3 {[%emt 0:00:33]} 49. Be3 {[%emt 0:00:18]} h3 {[%emt 0:00:12]} 50. Bg1 {[%emt 0:00:06]} h2 {[%emt 0:00:18]} 51. Bxh2+ {[%emt 0:00:09]} Kxh2 {[%emt 0:00:07]} 52. Kf6 {[%emt 0:00:12]} Nf4 0-1